bitfinex/quotes_SOLUSD_20250724
["timestamp","ask_amount","ask_price","bid_price","bid_amount"]
[1753364790361,0.03,186.64,186.59,0.72]
[1753364790569,0.03,186.64,186.61,13.53945679]
[1753364790890,14.24945679,186.63,186.58,19.96165679]
[1753364791085,13.53945679,186.61,186.56,13.53945679]
[1753364791279,40.08,186.6,186.56,13.53945679]
[1753364791480,40.08,186.6,186.53,32.3115]
[1753364791481,53.61945679,186.6,186.55,13.53945679]
[1753364791686,53.61945679,186.6,186.53,6.3115]
[1753364791687,13.53945679,186.56,186.45,2.10283681]
[1753364791902,13.53945679,186.46,186.44,0.06]
[1753364792191,53.67945679,186.45,186.44,0.06]
[1753364792386,54.38945679,186.45,186.44,0.06]
[1753364792798,40.85,186.45,186.44,0.06]
[1753364792984,40.14,186.45,186.44,0.06]
[1753364793373,54.38945679,186.45,186.44,0.06]
[1753364793783,76.53750895,186.45,186.44,0.06]
[1753364794187,71.17414076,186.45,186.44,0.06]
[1753364795276,40.14,186.45,186.44,0.06]
[1753364795502,54.38945679,186.45,186.44,0.06]
[1753364795676,71.17414076,186.45,186.44,0.06]
[1753364795878,17.49468397,186.45,186.44,0.06]
[1753364796079,71.17414076,186.45,186.44,0.06]
[1753364796275,54.38945679,186.45,186.44,0.06]
[1753364796497,53.67945679,186.45,186.44,0.06]
[1753364796678,13.53945679,186.45,186.44,0.06]
[1753364797000,53.67945679,186.45,186.44,0.06]
[1753364797203,40.14,186.45,186.44,0.06]
[1753364797378,40.12,186.45,186.44,0.06]
[1753364797977,40.1,186.46,186.44,0.78]
[1753364798177,13.53945679,186.48,186.44,0.06]
[1753364798397,40.1,186.47,186.44,0.06]
[1753364798978,14.24945679,186.46,186.44,0.06]
[1753364799196,13.40347981,186.52,186.44,0.06]
[1753364799197,13.53945679,186.48,186.44,0.06]
[1753364799395,0.71,186.52,186.45,13.53945679]
[1753364799601,0.71,186.52,186.45,14.23945679]
[1753364799602,53.63945679,186.51,186.45,14.23945679]
[1753364799804,5.36126594,186.53,186.45,14.23945679]
[1753364799805,13.53945679,186.53,186.47,13.53945679]
[1753364799994,13.39921102,186.58,186.45,0.7]
[1753364799995,40.1,186.52,186.48,13.53945679]
[1753364800198,14.24945679,186.55,186.49,13.53945679]
[1753364800398,5.35991852,186.57,186.49,13.53945679]
[1753364800399,40.1,186.57,186.5,0.7]
[1753364800593,40.1,186.56,186.52,13.53945679]
[1753364800782,40.81,186.56,186.52,13.53945679]
[1753364800978,14.24945679,186.55,186.5,13.53945679]
[1753364801178,19.61016184,186.55,186.49,6.1431]
[1753364801408,14.24945679,186.55,186.5,13.53945679]
[1753364801594,58.99984683,186.56,186.51,13.53945679]
[1753364801799,59.70984683,186.56,186.51,13.53945679]
[1753364802198,16.78468397,186.6,186.55,13.53945679]
[1753364802401,13.53945679,186.62,186.52,0.7]
[1753364802402,6.06822833,186.63,186.59,13.53945679]
[1753364802602,40.14,186.62,186.59,13.53945679]
[1753364803192,40.14,186.62,186.6,13.53945679]
[1753364803495,40.14,186.62,186.59,13.53945679]
[1753364803697,45.49860761,186.62,186.56,0.7]
[1753364803903,0.71,186.61,186.56,13.53945679]
[1753364804092,0.71,186.6,186.56,13.53945679]
[1753364804293,40.14,186.62,186.58,13.53945679]
[1753364804488,40.14,186.62,186.6,13.53945679]
[1753364805296,40.14,186.62,186.59,13.53945679]
[1753364805507,45.49853606,186.62,186.58,13.53945679]
[1753364805809,0.71,186.61,186.57,13.53945679]
[1753364806011,0.71,186.6,186.55,13.53945679]
[1753364806195,59.03799285,186.62,186.56,13.53945679]
[1753364806386,59.03799285,186.62,186.57,13.53945679]
[1753364806708,59.74799285,186.62,186.56,13.53945679]
[1753364806906,13.53945679,186.6,186.55,13.53945679]
[1753364807090,13.53945679,186.6,186.54,13.53945679]
[1753364807091,40.79,186.59,186.54,13.53945679]
[1753364807299,6.06963125,186.58,186.54,13.53945679]
[1753364807505,6.06963125,186.58,186.55,13.53945679]
[1753364807506,0.71,186.58,186.55,13.53945679]
[1753364807812,45.43935998,186.59,186.55,13.53945679]
[1753364808013,40.08,186.59,186.56,13.53945679]
[1753364808390,40.08,186.61,186.58,13.53945679]
[1753364808591,40.08,186.61,186.59,13.53945679]
[1753364809108,59.68827479,186.61,186.56,13.53945679]
[1753364809412,46.148818,186.61,186.56,13.53945679]
[1753364809608,2.79545528,186.62,186.6,13.53945679]
[1753364809794,42.87545528,186.62,186.6,13.53945679]
[1753364809999,42.87545528,186.62,186.59,13.53945679]
[1753364810314,42.87545528,186.62,186.56,5.36015039]
[1753364810315,42.87545528,186.62,186.6,13.53945679]
[1753364810525,40.08,186.62,186.61,13.53945679]
[1753364810733,0.03,186.64,186.61,14.23945679]
[1753364811043,0.03,186.64,186.63,13.53945679]
[1753364811349,0.03,186.64,186.61,0.7]
[1753364811692,0.03,186.64,186.59,26.0]
[1753364811693,0.74,186.64,186.59,26.0]
[1753364811892,0.03,186.64,186.61,13.53945679]
[1753364812107,0.03,186.64,186.62,13.53945679]
[1753364812902,0.03,186.64,186.6,13.53945679]
[1753364813216,0.03,186.64,186.61,13.53945679]
[1753364814008,0.03,186.64,186.62,13.53945679]
[1753364814720,0.03,186.64,186.61,13.53945679]
[1753364815804,0.03,186.64,186.6,13.53945679]
[1753364816001,0.74,186.64,186.6,13.53945679]
[1753364816293,0.03,186.64,186.61,13.53945679]
[1753364816919,0.03,186.64,186.6,13.53945679]
[1753364817109,0.74,186.64,186.6,13.53945679]
[1753364817508,0.03,186.64,186.6,13.53945679]
[1753364818024,0.74,186.64,186.6,13.53945679]
[1753364818219,13.56945679,186.64,186.56,6.06013797]
[1753364818426,0.71,186.63,186.57,13.53945679]
[1753364818598,40.06,186.62,186.58,13.53945679]
[1753364819399,45.41874966,186.62,186.57,13.53945679]
[1753364819600,13.53945679,186.6,186.55,13.59945679]
[1753364819806,40.06,186.59,186.55,13.59945679]
[1753364820030,40.77,186.59,186.55,0.06]
[1753364820218,40.77,186.59,186.55,13.59945679]
[1753364820719,14.24945679,186.58,186.55,0.06]
[1753364820920,30.32414076,186.56,186.55,0.06]
[1753364821222,70.38414076,186.56,186.55,0.06]
[1753364821530,76.45434659,186.56,186.55,0.06]
[1753364821723,45.42020583,186.56,186.55,0.06]
[1753364822110,40.06,186.56,186.55,0.06]
[1753364822424,40.10630104,186.62,186.55,13.59945679]
[1753364822725,13.53945679,186.56,186.55,0.06]
[1753364822930,70.38414076,186.56,186.55,0.06]
[1753364823113,97.3784639,186.56,186.55,0.06]
[1753364823431,102.73866973,186.56,186.55,0.06]
[1753364823620,62.39434659,186.56,186.55,0.06]
[1753364823821,102.45434659,186.56,186.55,0.06]
[1753364824006,40.06,186.56,186.55,0.06]
[1753364824211,45.42020583,186.56,186.55,0.06]
[1753364824405,40.06,186.56,186.55,0.06]
[1753364825528,40.06,186.56,186.55,13.59945679]
[1753364826427,40.06,186.56,186.55,0.06]
[1753364826613,54.30945679,186.56,186.55,0.06]
[1753364827313,76.45434659,186.56,186.55,0.06]
[1753364828913,40.06,186.56,186.55,0.06]
[1753364829111,40.78,186.56,186.55,0.06]
[1753364830023,53.59945679,186.56,186.55,0.06]
[1753364830330,40.06,186.56,186.55,0.06]
[1753364831027,42.85607211,186.56,186.55,0.06]
[1753364831412,48.21627794,186.56,186.55,0.06]
[1753364831613,42.85607211,186.56,186.55,0.06]
[1753364831824,43.57607211,186.56,186.55,0.06]
[1753364832023,62.47573473,186.56,186.55,0.06]
[1753364832215,79.2604187,186.56,186.55,0.06]
[1753364832718,48.21627794,186.56,186.55,0.06]
[1753364832927,42.85607211,186.56,186.55,0.06]
[1753364833622,18.89765214,186.63,186.55,14.28945679]
[1753364833817,40.06,186.62,186.58,13.53945679]
[1753364834022,42.85544632,186.62,186.58,13.53945679]
[1753364834230,14.25945679,186.61,186.56,13.53945679]
[1753364834409,40.06,186.6,186.56,13.53945679]
[1753364835016,45.41908483,186.6,186.56,13.53945679]
[1753364835214,45.41908483,186.6,186.56,8.8544271]
[1753364835434,9.5744271,186.59,186.55,0.06]
[1753364835638,48.9144271,186.58,186.55,0.06]
[1753364835811,8.8544271,186.57,186.55,0.06]
[1753364836014,48.9144271,186.56,186.55,0.06]
[1753364836211,26.0,186.53,186.51,0.06]
[1753364836410,65.69911107,186.52,186.51,0.06]
[1753364836632,66.41911107,186.52,186.51,0.06]
[1753364837017,49.6344271,186.52,186.51,0.06]
[1753364837415,54.99578245,186.52,186.51,0.06]
[1753364837646,71.78046642,186.52,186.51,0.06]
[1753364838731,54.99578245,186.52,186.51,0.06]
[1753364839247,46.14135535,186.52,186.51,0.06]
[1753364839453,18.91249109,186.54,186.51,0.06]
[1753364839645,5.36057663,186.55,186.51,13.61148149]
[1753364839828,40.06,186.54,186.51,14.30148149]
[1753364840030,40.06,186.54,186.52,14.24148149]
[1753364841421,26.0,186.6,186.53,14.24148149]
[1753364841627,26.0,186.6,186.52,11.47940199]
[1753364841628,2.79544632,186.62,186.59,13.55148149]
[1753364841828,40.06,186.61,186.6,14.24148149]
[1753364842245,2.82507767,186.64,186.6,14.24148149]
[1753364842433,40.06,186.63,186.62,13.55148149]
[1753364842746,0.03,186.64,186.63,6.1181]
[1753364842927,0.03,186.64,186.63,20.35958149]
[1753364843525,0.03,186.64,186.63,52.00209998]
[1753364843731,0.03,186.64,186.63,43.32260348]
[1753364844054,0.03,186.66,186.64,43.06900711]
[1753364844234,0.03,186.74,186.68,0.28432314]
[1753364844427,0.03,186.74,186.71,26.14216157]
[1753364844738,0.03,186.74,186.71,40.52580463]
[1753364844950,0.03,186.74,186.71,40.24148149]
[1753364845942,0.03,186.74,186.71,13.55148149]
[1753364846325,40.04,186.73,186.67,0.97432314]
[1753364846526,40.04,186.73,186.69,13.55148149]
[1753364846723,40.04,186.73,186.7,13.55148149]
[1753364846943,40.04,186.73,186.71,13.55148149]
[1753364847131,40.04,186.73,186.66,26.0]
[1753364847132,0.75,186.72,186.66,26.0]
[1753364847331,13.55148149,186.71,186.65,13.55148149]
[1753364847551,5.38561268,186.72,186.69,13.55148149]
[1753364847856,0.03,186.72,186.7,13.55148149]
[1753364848056,0.03,186.72,186.68,13.55148149]
[1753364848232,0.03,186.72,186.66,0.69]
[1753364848233,0.03,186.72,186.69,13.55148149]
[1753364848428,40.07,186.72,186.69,13.55148149]
[1753364849749,5.35589952,186.71,186.69,13.55148149]
[1753364849929,6.07589952,186.71,186.64,26.83216157]
[1753364850137,0.72,186.7,186.64,26.0]
[1753364850335,5.35589952,186.71,186.67,13.55148149]
[1753364851274,5.35589952,186.71,186.68,13.55148149]
[1753364851641,5.35589952,186.71,186.67,13.55148149]
[1753364852231,5.35589952,186.71,186.68,14.24148149]
[1753364852436,5.35589952,186.71,186.7,13.55148149]
[1753364852733,0.03,186.72,186.7,14.24148149]
[1753364852933,5.38572522,186.72,186.71,14.24148149]
[1753364853152,0.03,186.72,186.71,14.24148149]
[1753364855457,0.03,186.72,186.71,13.55148149]
[1753364857153,0.03,186.72,186.71,14.24148149]
[1753364858270,0.03,186.72,186.71,57.84607855]
[1753364858570,0.03,186.72,186.71,20.34368149]
[1753364858737,0.03,186.72,186.7,0.06]
[1753364858935,0.03,186.72,186.7,13.61148149]
[1753364859141,0.03,186.72,186.71,13.55148149]
[1753364859477,0.03,186.72,186.71,9.54993164]
[1753364860960,0.03,186.72,186.71,35.12425478]
[1753364861157,0.03,186.72,186.71,58.51042822]
[1753364861470,0.03,186.72,186.71,60.10752822]
[1753364861658,0.03,186.72,186.71,54.7516287]
[1753364862061,0.03,186.72,186.71,37.43135478]
[1753364863063,0.03,186.72,186.71,37.28919321]
[1753364863246,0.03,186.72,186.71,8.83993164]
[1753364863667,0.74,186.72,186.7,0.06]
[1753364863859,0.71,186.71,186.7,0.06]
[1753364864172,0.03,186.72,186.7,8.89993164]
[1753364864346,0.03,186.72,186.71,9.54993164]
[1753364864742,0.03,186.72,186.71,8.83993164]
[1753364864956,5.38561268,186.72,186.71,8.83993164]
[1753364865254,5.38561268,186.72,186.71,9.54993164]
[1753364865759,5.38561268,186.72,186.71,8.83993164]
[1753364866067,5.38561268,186.72,186.7,0.06]
[1753364866258,5.38561268,186.72,186.71,8.83993164]
[1753364866461,0.03,186.72,186.71,8.83993164]
[1753364866659,0.03,186.72,186.71,9.54993164]
[1753364866969,0.03,186.72,186.71,9.83425478]
[1753364867473,0.03,186.76,186.75,43.06900711]
[1753364867767,0.03,186.76,186.75,52.44441398]
[1753364867969,0.03,186.76,186.75,53.15441398]
[1753364868378,0.03,186.76,186.75,58.50916632]
[1753364868690,0.03,186.76,186.75,9.54993164]
[1753364868975,0.03,186.76,186.75,9.12425478]
[1753364869161,0.03,186.76,186.75,9.83425478]
[1753364869981,0.03,186.76,186.75,9.54993164]
[1753364870347,0.03,186.76,186.75,0.71]
[1753364870672,0.03,186.76,186.75,9.54993164]
[1753364871056,0.03,186.76,186.75,52.61893875]
[1753364871400,0.03,186.76,186.75,97.93369109]
[1753364871575,0.03,186.78,186.77,42.78468397]
[1753364871754,0.03,186.78,186.77,61.28428828]
[1753364872071,0.03,186.78,186.77,61.99428828]
[1753364872254,0.2,186.81,186.77,61.99428828]
[1753364872457,0.2,186.81,186.8,51.62461561]
[1753364872673,0.2,186.81,186.8,34.83993164]
[1753364872862,0.2,186.81,186.8,35.12425478]
[1753364873772,0.2,186.81,186.78,26.0]
[1753364874078,0.2,186.81,186.79,8.83993164]
[1753364874277,0.2,186.81,186.8,8.83993164]
[1753364874653,0.2,186.81,186.8,9.54993164]
[1753364874871,0.2,186.81,186.8,15.72290573]
[1753364875576,0.2,186.83,186.82,42.78468397]
[1753364875763,0.2,186.83,186.82,52.44421334]
[1753364875972,0.03,186.9,186.83,0.28432314]
[1753364876168,0.03,186.9,186.82,52.8698902]
[1753364876169,0.03,186.9,186.89,8.83993164]
[1753364878478,0.03,186.9,186.89,14.90067271]
[1753364879075,0.03,186.9,186.89,40.80961146]
[1753364879266,0.03,186.9,186.89,47.18291146]
[1753364879478,1e-08,186.9,186.89,47.18291146]
[1753364880306,1e-08,186.9,186.87,1.5299]
[1753364880477,0.71,186.89,186.85,8.83993164]
[1753364880659,0.71,186.88,186.84,8.83993164]
[1753364880860,1e-08,186.9,186.86,8.83993164]
[1753364881061,1e-08,186.9,186.81,7.58395727]
[1753364881062,1e-08,186.9,186.89,8.83993164]
[1753364881484,1e-08,186.9,186.89,35.45887039]
[1753364881857,1e-08,186.9,186.89,16.42202888]
[1753364882060,1e-08,186.9,186.89,47.39738556]
[1753364882256,1e-08,186.93,186.92,42.78468397]
[1753364882560,0.1,187.0,186.97,16.78468397]
[1753364882780,0.1,187.0,186.99,8.83993164]
[1753364883688,0.1,187.0,186.98,26.0]
[1753364883856,0.1,187.0,186.98,34.83993164]
[1753364884062,0.1,187.0,186.99,8.83993164]
[1753364884265,0.1,187.0,186.98,8.83993164]
[1753364884472,0.1,187.0,186.97,8.83993164]
[1753364884959,14.28762466,187.0,186.91,1.24501685]
[1753364885161,8.83993164,186.98,186.93,8.83993164]
[1753364885469,9.54993164,186.99,186.93,8.83993164]
[1753364885676,9.54993164,186.99,186.94,8.83993164]
[1753364885877,0.71,186.98,186.92,26.0]
[1753364886067,6.05844607,186.98,186.94,8.83993164]
[1753364886271,6.05844607,186.98,186.92,8.83993164]
[1753364886272,9.54993164,186.97,186.92,8.83993164]
[1753364886470,8.83993164,186.94,186.89,8.83993164]
[1753364886672,9.54993164,186.94,186.89,26.0]
[1753364886868,9.54993164,186.94,186.89,34.83993164]
[1753364887066,9.54993164,186.93,186.88,8.83993164]
[1753364887273,8.83993164,186.93,186.88,8.83993164]
[1753364887499,8.83993164,186.93,186.84,25.02398397]
[1753364887500,8.83993164,186.9,186.81,5.35297888]
[1753364887807,0.71,186.92,186.8,0.71]
[1753364887808,8.83993164,186.85,186.8,8.83993164]
[1753364887967,0.71,186.84,186.78,8.83993164]
[1753364888167,0.71,186.84,186.8,8.83993164]
[1753364888387,0.71,186.84,186.77,26.0]
[1753364888604,0.71,186.84,186.76,26.71]
[1753364888605,0.71,186.84,186.79,8.83993164]
[1753364888770,8.83993164,186.86,186.81,8.83993164]
[1753364888977,26.0,186.89,186.76,26.71]
[1753364888978,8.83993164,186.87,186.82,8.83993164]
[1753364889284,14.16810691,186.86,186.81,13.49810691]
[1753364889490,13.49810691,186.86,186.81,13.49810691]
[1753364889696,0.67,186.85,186.78,26.66]
[1753364889874,0.67,186.88,186.83,13.49810691]
[1753364890069,0.67,186.87,186.83,13.49810691]
[1753364890287,0.67,186.86,186.83,13.49810691]
[1753364890669,0.67,186.86,186.84,13.49810691]
[1753364890872,0.67,186.86,186.83,13.49810691]
[1753364891181,0.67,186.86,186.81,13.49810691]
[1753364891383,0.67,186.86,186.82,13.49810691]
[1753364891584,13.49810691,186.88,186.83,13.49810691]
[1753364892378,13.49810691,186.87,186.76,26.53544656]
[1753364892587,13.49810691,186.85,186.8,13.49810691]
[1753364892789,0.67,186.84,186.8,13.49810691]
[1753364893190,0.67,186.84,186.76,0.66]
[1753364893191,14.16810691,186.83,186.78,39.49810691]
[1753364893482,13.49810691,186.83,186.78,39.49810691]
[1753364893995,14.16810691,186.86,186.81,13.49810691]
[1753364894199,0.67,186.86,186.82,13.49810691]
[1753364894396,13.49810691,186.87,186.82,13.49810691]
[1753364894572,13.49810691,186.91,186.86,13.49810691]
[1753364894778,5.34930993,186.94,186.88,13.49810691]
[1753364894990,13.49810691,186.93,186.88,13.49810691]
[1753364895187,14.16810691,186.93,186.88,13.49810691]
[1753364895370,39.9,186.94,186.9,13.49810691]
[1753364895575,39.9,186.94,186.91,13.49810691]
[1753364895775,39.9,186.94,186.89,0.5350741]
[1753364895991,39.9,186.94,186.91,13.49810691]
[1753364896591,0.67,186.93,186.89,13.49810691]
[1753364896788,0.67,186.92,186.88,13.49810691]
[1753364897098,14.16810691,186.91,186.86,13.49810691]
[1753364897284,0.67,186.9,186.87,13.49810691]
[1753364897479,14.16810691,186.89,186.84,13.49810691]
[1753364897788,14.16810691,186.89,186.82,13.49810691]
[1753364897789,13.49810691,186.87,186.82,13.49810691]
[1753364898201,14.16810691,186.87,186.82,13.49810691]
[1753364898389,0.67,186.93,186.87,5.35131374]
[1753364898706,6.01964677,186.93,186.85,26.66]
[1753364898879,19.51775368,186.93,186.88,13.49810691]
[1753364899079,14.16810691,186.93,186.88,13.49810691]
[1753364899306,19.51786418,186.93,186.88,13.49810691]
[1753364899695,6.01975727,186.93,186.89,13.49810691]
[1753364899899,0.67,186.93,186.89,13.49810691]
[1753364900094,0.03,186.94,186.91,13.49810691]
[1753364900710,13.49810691,186.92,186.8,28.46237938]
[1753364900897,13.49810691,186.86,186.81,0.06]
[1753364901101,0.67,186.85,186.81,0.06]
[1753364901501,14.16810691,186.89,186.84,13.49810691]
[1753364901698,54.04810691,186.89,186.84,13.49810691]
[1753364901898,54.04810691,186.89,186.83,13.49810691]
[1753364902499,59.39893198,186.89,186.83,13.49810691]
[1753364902709,59.39893198,186.89,186.84,13.49810691]
[1753364903205,14.16810691,186.88,186.83,13.49810691]
[1753364903411,42.67114037,186.89,186.85,13.49810691]
[1753364903587,42.67114037,186.89,186.83,5.35245492]
[1753364903588,42.67114037,186.89,186.86,13.49810691]
[1753364903789,39.88,186.89,186.87,13.49810691]
[1753364903994,14.16810691,186.92,186.87,13.49810691]
[1753364904208,13.49810691,186.93,186.88,13.49810691]
[1753364904402,53.37810691,186.93,186.88,13.49810691]
[1753364904595,39.88,186.93,186.9,13.49810691]
[1753364904795,39.88,186.93,186.91,13.49810691]
[1753364905505,39.88,186.93,186.88,13.49810691]
[1753364905686,0.67,186.92,186.86,39.49810691]
[1753364905888,0.67,186.92,186.87,13.49810691]
[1753364906503,39.88,186.93,186.88,13.49810691]
[1753364906686,39.88,186.93,186.89,13.49810691]
[1753364907500,39.88,186.93,186.9,13.49810691]
[1753364907702,39.88,186.93,186.91,13.49810691]
[1753364908103,39.88,186.93,186.89,13.49810691]
[1753364909116,40.55,186.93,186.88,13.49810691]
[1753364909313,0.67,186.92,186.85,26.0]
[1753364909542,13.49810691,186.87,186.81,0.06]
[1753364909826,13.49810691,186.85,186.81,0.06]
[1753364909995,13.49810691,186.84,186.81,0.06]
[1753364910415,13.49810691,186.82,186.81,0.06]
[1753364910604,0.67,186.83,186.81,0.06]
[1753364910808,39.86,186.84,186.81,0.06]
[1753364911719,14.16810691,186.89,186.83,13.49810691]
[1753364911907,39.86,186.88,186.83,13.49810691]
[1753364912110,53.35810691,186.88,186.83,13.49810691]
[1753364912301,13.49810691,186.85,186.81,0.06]
[1753364912522,14.16810691,186.87,186.82,13.49810691]
[1753364912729,40.53,186.87,186.82,13.49810691]
[1753364912899,40.53,186.87,186.83,13.49810691]
[1753364913100,13.49810691,186.89,186.84,13.49810691]
[1753364913319,54.02810691,186.88,186.82,13.49810691]
[1753364914016,13.49810691,186.86,186.81,0.06]
[1753364914222,13.49810691,186.85,186.81,0.06]
[1753364914428,39.86,186.88,186.81,13.55810691]
[1753364914717,54.02810691,186.88,186.83,13.49810691]
[1753364914920,53.35810691,186.88,186.83,13.49810691]
[1753364915223,0.67,186.87,186.82,13.49810691]
[1753364915424,13.49810691,186.87,186.81,13.55810691]
[1753364915725,0.67,186.86,186.81,13.55810691]
[1753364916022,0.67,186.86,186.82,13.49810691]
[1753364916222,13.49810691,186.87,186.82,13.39828406]
[1753364916527,14.16810691,186.87,186.82,13.49810691]
[1753364916917,14.16810691,186.87,186.81,0.06]
[1753364917110,13.49810691,186.91,186.86,13.49810691]
[1753364917318,49.35540524,186.9,186.85,8.82540524]
[1753364917501,49.35540524,186.9,186.82,0.66]
[1753364917502,8.82540524,186.87,186.82,26.0]
[1753364917704,0.67,186.86,186.82,34.82540524]
[1753364918027,9.49540524,186.87,186.82,34.82540524]
[1753364918242,8.82540524,186.87,186.82,34.82540524]
[1753364918402,8.82540524,186.84,186.81,0.06]
[1753364918719,39.86,186.85,186.81,0.06]
[1753364918923,0.69,186.84,186.81,0.06]
[1753364919405,39.86,186.85,186.81,0.06]
[1753364919599,0.69,186.83,186.81,0.06]
[1753364920930,0.72,186.94,186.86,26.0]
[1753364921100,8.82540524,186.92,186.86,34.82540524]
[1753364921300,8.82540524,186.89,186.85,6.4202]
[1753364921507,9.51540524,186.89,186.83,9.52540524]
[1753364921721,0.69,186.88,186.83,8.82540524]
[1753364922032,0.69,186.88,186.85,8.82540524]
[1753364922530,0.69,186.88,186.81,26.87962638]
[1753364922531,9.51540524,186.87,186.81,34.88540524]
[1753364923026,8.82540524,186.85,186.81,0.06]
[1753364923231,8.82540524,186.82,186.81,0.06]
[1753364923727,9.51540524,186.82,186.81,0.06]
[1753364924215,0.69,186.82,186.81,0.06]
[1753364924412,39.86,186.83,186.81,0.06]
[1753364925426,48.68540524,186.83,186.81,0.06]
[1753364925928,0.69,186.82,186.81,0.06]
[1753364926124,9.51540524,186.82,186.81,0.06]
[1753364929302,0.69,186.82,186.81,0.06]
[1753364929508,9.51540524,186.82,186.81,0.06]
[1753364930127,9.51540524,186.82,186.77,0.06]
[1753364930128,52.30008921,186.82,186.77,0.06]
[1753364930326,8.82540524,186.78,186.77,0.06]
[1753364930525,48.68540524,186.78,186.77,0.06]
[1753364930929,49.37540524,186.78,186.77,0.06]
[1753364931454,58.20081048,186.78,186.77,0.06]
[1753364932404,74.98549445,186.78,186.77,0.06]
[1753364933027,74.98549445,186.78,186.73,0.06]
[1753364933028,26.0,186.75,186.73,0.06]
[1753364933238,91.59225078,186.74,186.7,0.06]
[1753364933404,91.59225078,186.74,186.62,0.2]
[1753364933405,51.61008921,186.71,186.62,0.2]
[1753364933608,8.82540524,186.63,186.62,0.2]
[1753364933808,39.86,186.63,186.62,9.02540524]
[1753364934020,39.86,186.65,186.62,0.9]
[1753364934423,39.86,186.65,186.62,9.72540524]
[1753364934627,39.86,186.65,186.64,8.82540524]
[1753364934828,39.86,186.65,186.62,9.02540524]
[1753364935231,39.86,186.65,186.62,0.2]
[1753364935439,39.86,186.65,186.62,0.34216157]
[1753364936026,39.86,186.65,186.62,9.16756681]
[1753364936226,39.86,186.65,186.62,0.2]
[1753364937354,26.0,186.72,186.64,8.96756681]
[1753364937355,0.69,186.72,186.64,8.96756681]
[1753364937651,39.86,186.71,186.67,8.82540524]
[1753364937820,39.86,186.71,186.66,8.82540524]
[1753364938142,39.86,186.71,186.68,8.82540524]
[1753364938350,39.86,186.71,186.7,8.96756681]
[1753364938529,39.86,186.71,186.7,8.82540524]
[1753364938840,39.86,186.71,186.7,9.80972838]
[1753364939141,0.69,186.78,186.71,0.28432314]
[1753364939342,39.86,186.77,186.74,8.82540524]
[1753364939843,39.86,186.77,186.72,8.82540524]
[1753364940026,8.82540524,186.75,186.7,0.28432314]
[1753364940339,39.86,186.74,186.7,8.82540524]
[1753364940719,39.86,186.74,186.71,8.82540524]
[1753364940948,39.86,186.74,186.73,8.82540524]
[1753364941243,39.86,186.74,186.72,8.82540524]
[1753364941943,40.87,186.82,186.73,9.80972838]
[1753364942130,48.68540524,186.81,186.76,8.82540524]
[1753364942332,49.37540524,186.81,186.76,8.82540524]
[1753364942748,39.86,186.81,186.79,8.82540524]
[1753364942941,2.79243291,186.84,186.8,16.07790524]
[1753364943247,9.51540524,186.92,186.83,8.82540524]
[1753364943436,42.63116909,186.91,186.89,8.82540524]
[1753364943762,39.84,186.91,186.89,8.82540524]
[1753364943924,39.84,186.91,186.9,8.82540524]
[1753364944647,39.84,186.91,186.88,9.10972838]
[1753364944857,0.03,186.9,186.87,8.82540524]
[1753364945028,0.72,186.9,186.86,8.82540524]
[1753364945230,0.72,186.9,186.84,13.48975058]
[1753364945231,0.69,186.89,186.84,13.48975058]
[1753364945449,0.03,186.9,186.86,13.48975058]
[1753364945832,0.03,186.9,186.85,13.48975058]
[1753364946057,0.69,186.89,186.84,0.28432314]
[1753364946352,0.69,186.89,186.8,7.2525]
[1753364946353,13.48975058,186.87,186.81,13.48975058]
[1753364946523,39.84,186.86,186.82,13.48975058]
[1753364946725,13.48975058,186.85,186.8,6.5525]
[1753364946926,0.69,186.85,186.81,13.48975058]